Workbook

Sheet Count Figures
B1: Number of ballot papers counted
B2: Area 1 | C2: Area 2 | D2: Area 3 | E2: Area 4 | F2: Area 5 | G2: Area 6 | H2: Area 7 | I2: Area 8 | J2: Total | L2: % of valid Votes | M2: % of all votes
A3: Remain in EU | B3: 2,417 | C3: 3,113 | D3: 2,670 | E3: 2,583 | F3: 2,846 | G3: 2,238 | H3: 2,083 | I3: 2,061 | J3: =SUM(B3:I3) -> 20,011 | L3: =+J3/J6 -> 45.12% | M3: =+J3/$J$8 -> 45.08%
A4: Leave EU | B4: 3,405 | C4: 2,605 | D4: 2,937 | E4: 3,269 | F4: 2,882 | G4: 3,108 | H4: 2,877 | I4: 3,256 | J4: =SUM(B4:I4) -> 24,339 | K4: =+J4-J3 -> 4,328 | L4: =+J4/J6 -> 54.88% | M4: =+J4/$J$8 -> 54.83%
A5: Number of rejected ballot papers | B5: 6 | C5: 6 | D5: 4 | E5: 8 | F5: 6 | G5: 1 | H5: 3 | I5: 3 | J5: =SUM(B5:I5) -> 37 | M5: =+J5/$J$8 -> 0.08%
A6: Total Valid Votes | B6: =+B4+B3 -> 5,822 | C6: 5,718 | D6: 5,607 | E6: 5,852 | F6: 5,728 | G6: 5,346 | H6: 4,960 | I6: 5,317 | J6: 44,350 | L6: =+L4+L3 -> 100.00% | M6: =+M5+M4+M3 -> 100.00%
A8: Total number of ballot papers | B8: =+B5+B6 -> 5,828 | C8: 5,724 | D8: 5,611 | E8: 5,860 | F8: 5,734 | G8: 5,347 | H8: 4,963 | I8: 5,320 | J8: 44,387
A9: Total number of ballot papers check against Verification count totals | B9: =IF(B8='[1]Verification - Postal Votes'!G2,"Match",'[1]Count Figures'!B8-'[1]Verification - Postal Votes'!G2) -> Match | C9: =IF(C8='[1]Verification - Postal Votes'!G3,"Match",'[1]Count Figures'!C8-'[1]Verification - Postal Votes'!G3) -> Match | D9: =IF(D8='[1]Verification - Postal Votes'!G4,"Match",'[1]Count Figures'!D8-'[1]Verification - Postal Votes'!G4) -> Match | E9: =IF(E8='[1]Verification - Postal Votes'!G5,"Match",'[1]Count Figures'!E8-'[1]Verification - Postal Votes'!G5) -> Match | F9: =IF(F8='[1]Verification - Postal Votes'!G6,"Match",F8-'[1]Verification - Postal Votes'!G6) -> Match | G9: =IF(G8='[1]Verification - Postal Votes'!G7,"Match",'[1]Count Figures'!G8-'[1]Verification - Postal Votes'!G7) -> Match | H9: =IF(H8='[1]Verification - Postal Votes'!G8,"Match",'[1]Count Figures'!H8-'[1]Verification - Postal Votes'!G8) -> Match | I9: =IF(I8='[1]Verification - Postal Votes'!G9,"Match",'[1]Count Figures'!I8-'[1]Verification - Postal Votes'!G9) -> Match | J9: =IF(J8='[1]Verification - Postal Votes'!G10,"Match",'[1]Count Figures'!J8-'[1]Verification - Postal Votes'!G10) -> Match
B11: Number of ballot papers rejected by category was as follows:
B12: Area 1 | C12: Area 2 | D12: Area 3 | E12: Area 4 | F12: Area 5 | G12: Area 6 | H12: Area 7 | I12: Area 8 | J12: Total | L12: % of Rejected papers
A13: No official mark | B13: 0 | C13: 0 | D13: 0 | E13: 0 | F13: 0 | G13: 0 | H13: 0 | I13: 0 | J13: =SUM(B13:I13) -> 0 | L13: =+J13/$J$18 -> 0.00%
A14: Voting for both answers to the question asked | B14: 3 | C14: 1 | D14: 1 | E14: 3 | F14: 1 | G14: 0 | H14: 1 | I14: 2 | J14: =SUM(B14:I14) -> 12 | L14: =+J14/$J$18 -> 32.43%
A15: Writing or mark by which the voter can be identified | B15: 0 | C15: 1 | D15: 0 | E15: 2 | F15: 1 | G15: 0 | H15: 0 | I15: 0 | J15: 4 | L15: 10.81%
A16: Unmarked or void for uncertainty | B16: 3 | C16: 4 | D16: 3 | E16: 3 | F16: 4 | G16: 1 | H16: 2 | I16: 1 | J16: 21 | L16: 56.76%
J17: 0 | L17: 0.00%
A18: Rejected Totals | B18: =SUM(B13:B17) -> 6 | C18: =SUM(C13:C17) -> 6 | D18: 4 | E18: 8 | F18: 6 | G18: 1 | H18: 3 | I18: 3 | J18: 37 | L18: =SUM(L13:L17) -> 100.00%
A19: Rejected Totals chack against Number of rejected ballot papers | B19: =IF(B18=B5,"Match",B18-B5) -> Match | C19: =IF(C18=C5,"Match",C18-C5) -> Match | D19: Match | E19: Match | F19: Match | G19: Match | H19: Match | I19: Match | J19: Match

Sheet Sheet2

Sheet Sheet3
